bitfinex/quotes_BTCUSD_20251205
["timestamp","ask_amount","ask_price","bid_price","bid_amount"]
[1764946683540,0.002,90288.0,90285.0,0.01107603]
[1764946683742,0.002,90288.0,90286.0,0.22151811]
[1764946683942,0.02150397,90289.0,90288.0,0.22151337]
[1764946684100,0.02150397,90289.0,90287.0,0.22151583]
[1764946684306,0.02150397,90289.0,90287.0,0.22151501]
[1764946684705,6.627e-05,90290.0,90289.0,0.22151092]
[1764946684910,6.627e-05,90290.0,90288.0,0.22151337]
[1764946685115,0.22451152,90289.0,90286.0,0.01107591]
[1764946685309,0.01407554,90289.0,90285.0,0.01107603]
[1764946685538,0.02150397,90284.0,90282.0,0.22152685]
[1764946685738,0.02150397,90284.0,90269.0,0.00141655]
[1764946685739,0.02150397,90277.0,90270.0,0.01107787]
[1764946685909,0.02150397,90272.0,90271.0,0.22155509]
[1764946686547,0.02150397,90272.0,90271.0,0.23263284]
[1764946687291,0.01107628,90283.0,90279.0,0.01107677]
[1764946687490,0.02150397,90280.0,90279.0,0.01107677]
[1764946687631,0.02150397,90280.0,90278.0,0.221533]
[1764946687841,0.01107652,90281.0,90278.0,0.2215374]
[1764946688044,0.0110764,90282.0,90278.0,0.23261429]
[1764946688321,0.0110764,90282.0,90279.0,0.22153443]
[1764946688501,0.01107628,90283.0,90281.0,0.22153034]
[1764946688680,0.03258012,90284.0,90281.0,0.01107652]
[1764946689005,0.22151582,90288.0,90281.0,0.01107652]
[1764946689006,0.2215164,90287.0,90283.0,0.22152564]
[1764946689152,0.01107566,90288.0,90283.0,0.23260192]
[1764946689351,0.23258993,90288.0,90285.0,0.23259529]
[1764946689591,0.23265093,90290.0,90286.0,0.01107591]
[1764946689864,0.02150397,90287.0,90286.0,0.23259407]
[1764946690061,0.22152073,90285.0,90282.0,0.22152658]
[1764946690260,0.01107591,90286.0,90282.0,0.0110764]
[1764946690261,0.02150397,90283.0,90282.0,0.0110764]
[1764946690457,0.02769009,90285.0,90282.0,0.2326045]
[1764946690680,0.02769009,90285.0,90278.0,0.01107689]
[1764946690681,0.01107615,90284.0,90278.0,0.01107689]
[1764946690881,0.02769009,90285.0,90281.0,0.22153041]
[1764946691182,0.02769009,90285.0,90278.0,0.22153568]
[1764946691183,0.01107652,90281.0,90278.0,0.22153568]
[1764946691381,0.0110764,90282.0,90278.0,0.01107689]
[1764946691605,0.0276907,90283.0,90276.0,0.01107714]
[1764946691606,0.03876698,90283.0,90276.0,0.01107714]
[1764946691810,0.03876698,90283.0,90214.0,0.09898935]
[1764946691811,0.01107836,90266.0,90255.0,0.01107971]
[1764946692011,0.01107935,90258.0,90250.0,0.01260142]
[1764946692215,0.01107935,90258.0,90226.0,1.10832351]
[1764946692216,0.02150397,90257.0,90256.0,0.01107959]
[1764946692445,0.02150397,90256.0,90255.0,0.23267379]
[1764946692652,0.02150397,90257.0,90255.0,0.01107971]
[1764946692851,0.01107959,90256.0,90253.0,0.01107996]
[1764946693056,0.02150397,90257.0,90254.0,0.01107984]
[1764946693360,0.22165896,90256.0,90253.0,0.01107996]
[1764946693507,6.622e-05,90256.0,90254.0,0.22159629]
[1764946693697,0.2216585,90256.0,90253.0,0.23267682]
[1764946694048,0.23267682,90254.0,90251.0,0.22160377]
[1764946694262,0.23267928,90253.0,90250.0,0.01108033]
[1764946694466,0.23267928,90253.0,90230.0,0.57452682]
[1764946694467,0.23270628,90243.0,90237.0,0.01108192]
[1764946694777,0.01108106,90244.0,90235.0,0.01108217]
[1764946694778,0.01108143,90241.0,90235.0,0.01108217]
[1764946694912,0.01108106,90244.0,90235.0,0.01108217]
[1764946694913,0.02150397,90238.0,90237.0,0.22163857]
[1764946695549,0.02150397,90238.0,90237.0,0.23063857]
[1764946695879,0.02150397,90252.0,90249.0,0.0221609]
[1764946696114,0.22365908,90256.0,90252.0,0.01108008]
[1764946696292,0.00206622,90256.0,90255.0,0.22159437]
[1764946697097,6.622e-05,90256.0,90255.0,0.22159437]
[1764946697298,6.622e-05,90256.0,90255.0,0.22311546]
[1764946698273,6.622e-05,90256.0,90255.0,0.22511546]
[1764946698453,6.622e-05,90256.0,90255.0,0.23311546]
[1764946699521,6.622e-05,90256.0,90255.0,0.55611546]
[1764946699691,0.02150397,90301.0,90295.0,0.01107481]
[1764946699897,0.02150397,90291.0,90289.0,0.01107554]
[1764946700102,0.02150397,90290.0,90288.0,0.23258853]
[1764946700379,0.02150397,90290.0,90287.0,0.23259081]
[1764946700581,0.02150397,90290.0,90289.0,0.22151092]
[1764946702007,0.02150397,90290.0,90283.0,0.23260013]
[1764946702008,0.01107591,90286.0,90277.0,0.01107701]
[1764946702219,0.23259419,90286.0,90282.0,0.0110764]
[1764946702401,0.01107591,90286.0,90283.0,0.01107628]
[1764946702787,0.02150397,90284.0,90283.0,0.23260002]
[1764946702990,0.23259457,90286.0,90282.0,0.0110764]
[1764946703198,0.01107615,90284.0,90280.0,0.23260765]
[1764946703398,0.01107579,90287.0,90284.0,0.01107615]
[1764946703605,0.01107579,90287.0,90284.0,0.23259699]
[1764946703606,0.03257976,90287.0,90284.0,0.23259699]
[1764946703810,0.03257976,90287.0,90280.0,0.01107665]
[1764946703811,0.01107603,90285.0,90280.0,0.23260914]
[1764946704012,0.221526,90283.0,90281.0,0.01107652]
[1764946704222,0.02150397,90281.0,90280.0,0.23260914]
[1764946704433,0.02150397,90280.0,90277.0,0.01107701]
[1764946704636,0.02150397,90278.0,90277.0,0.23261637]
[1764946705191,0.02150397,90278.0,90275.0,0.01107726]
[1764946705421,0.011078,90269.0,90260.0,0.0110791]
[1764946705621,0.23264243,90268.0,90264.0,0.01107861]
[1764946705833,0.23264243,90268.0,90261.0,0.01107898]
[1764946705834,0.02150397,90263.0,90261.0,0.01107898]
[1764946706194,0.02150397,90263.0,90260.0,0.0110791]
[1764946706392,0.02150397,90263.0,90262.0,0.22309827]
[1764946706577,0.02150397,90264.0,90263.0,0.23265172]
[1764946706723,0.02150397,90264.0,90262.0,0.22349712]
[1764946706925,0.24307815,90264.0,90262.0,0.00039917]
[1764946707154,0.02150397,90264.0,90262.0,0.00039917]
[1764946707364,0.02150397,90264.0,90262.0,0.22197533]
[1764946707564,0.02150397,90264.0,90262.0,0.00039917]
[1764946707769,0.24307639,90264.0,90262.0,0.00039917]
[1764946707966,0.02350397,90264.0,90262.0,0.00039917]
[1764946708370,0.002,90264.0,90263.0,0.22157473]
[1764946708605,0.03258111,90276.0,90273.0,0.22155018]
[1764946708810,0.23261518,90278.0,90274.0,0.23262511]
[1764946708967,0.02150397,90274.0,90272.0,0.01107763]
[1764946709168,0.01107701,90277.0,90272.0,0.01107763]
[1764946709169,0.02150397,90277.0,90272.0,0.01107763]
[1764946709379,0.01107726,90275.0,90272.0,0.22155239]
[1764946709588,0.01107726,90275.0,90240.0,0.72232009]
[1764946709589,0.2430787,90263.0,90220.0,0.0004]
[1764946709759,0.69385169,90263.0,90233.0,0.23273053]
[1764946709969,0.72691772,90263.0,90241.0,0.22162853]
[1764946710169,0.74842169,90263.0,90241.0,0.01108143]
[1764946710371,0.69385169,90263.0,90247.0,0.23269275]
[1764946710600,0.69385169,90263.0,90250.0,0.22160639]
[1764946710779,0.69385169,90263.0,90247.0,0.0110807]
[1764946710959,0.72691772,90263.0,90246.0,0.01108082]
[1764946711236,0.69785169,90263.0,90250.0,0.22160644]
[1764946711380,0.37485169,90263.0,90249.0,0.01108045]
[1764946711583,0.2750387,90263.0,90256.0,0.01107959]
[1764946711830,0.2430787,90263.0,90258.0,0.23266627]
[1764946712038,0.23264831,90265.0,90261.0,0.01107898]
[1764946712236,0.22457473,90263.0,90258.0,0.2326651]
[1764946712450,0.22457473,90263.0,90163.0,0.25737232]
[1764946712451,0.22457473,90263.0,90254.0,0.01107984]
[1764946712608,0.22457473,90263.0,90254.0,0.23267602]
[1764946712810,0.22457473,90263.0,90256.0,0.01107959]
[1764946713014,0.2460787,90263.0,90256.0,0.01107959]
[1764946713218,0.22457473,90263.0,90260.0,0.0110791]
[1764946713413,0.01107824,90267.0,90261.0,0.01107898]
[1764946713631,0.01107738,90274.0,90263.0,0.23265346]
[1764946713826,0.01107603,90285.0,90275.0,0.01107726]
[1764946714025,0.01107726,90275.0,90272.0,0.01107763]
[1764946714199,0.02150397,90271.0,90267.0,0.01107824]
[1764946714403,0.01107763,90272.0,90265.0,0.23264699]
[1764946714404,0.011078,90269.0,90265.0,0.23264699]
[1764946714717,0.002,90267.0,90265.0,0.23264699]
[1764946715141,0.02150397,90270.0,90268.0,0.22156113]
[1764946715721,0.03258184,90270.0,90267.0,0.01107824]
[1764946715926,0.027695,90269.0,90266.0,0.01107836]
[1764946716129,0.027695,90269.0,90267.0,0.22156349]
[1764946716342,0.027695,90269.0,90267.0,0.22308458]
[1764946716548,0.05457,90296.0,90276.0,0.01107714]
[1764946716549,0.23261104,90280.0,90276.0,0.01107714]
[1764946716971,0.01107542,90290.0,90281.0,0.01107652]
[1764946717182,0.02150397,90281.0,90279.0,0.01107677]
[1764946717329,0.02150397,90281.0,90278.0,0.01107689]
[1764946717330,0.04919528,90281.0,90278.0,0.01107689]
[1764946717559,0.04919528,90281.0,90279.0,0.22153451]
[1764946717762,0.04919528,90281.0,90279.0,0.22153546]
[1764946717763,0.003,90280.0,90279.0,0.22153546]
[1764946718176,0.02150397,90281.0,90278.0,0.01107689]
[1764946718430,0.24303456,90281.0,90278.0,0.01107689]
[1764946718640,0.25611187,90281.0,90273.0,0.0110775]
[1764946718869,0.02150397,90274.0,90273.0,0.23262768]
[1764946719081,0.02150397,90277.0,90276.0,0.22154272]
[1764946719285,0.02226968,90278.0,90276.0,0.22154272]
[1764946719508,0.002,90281.0,90275.0,0.23262209]
[1764946719509,0.002,90281.0,90280.0,0.221533]
[1764946719717,0.002,90281.0,90280.0,0.22305409]
[1764946719926,0.01107431,90299.0,90295.0,0.23256899]
[1764946720147,0.22148888,90298.0,90295.0,0.01107481]
[1764946720349,0.23256479,90298.0,90292.0,0.01107517]
[1764946720556,0.01107481,90295.0,90291.0,0.22150583]
[1764946720765,0.23257111,90295.0,90292.0,0.22150301]
[1764946720990,0.02150397,90302.0,90297.0,0.01107456]
[1764946721194,0.01107444,90298.0,90295.0,0.01107481]
[1764946721416,0.02150397,90296.0,90295.0,0.01107481]
[1764946721825,0.02150397,90295.0,90294.0,0.23257358]
[1764946722033,0.03257902,90293.0,90286.0,0.01107591]
[1764946722254,0.02150397,90293.0,90291.0,0.22150554]
[1764946722469,0.003,90295.0,90294.0,0.22149865]
[1764946723282,0.01107382,90303.0,90292.0,0.01107517]
[1764946723283,0.03884718,90302.0,90292.0,0.01107517]
[1764946723541,0.2214964,90295.0,90292.0,0.01107517]
[1764946723845,0.2214964,90295.0,90290.0,0.22732228]
[1764946723846,0.24918645,90294.0,90290.0,0.22732228]
[1764946724057,0.22149912,90294.0,90290.0,0.22732228]
[1764946724291,0.22150222,90293.0,90290.0,0.22732228]
[1764946724513,0.02768794,90292.0,90290.0,0.22732228]
[1764946724755,0.02768794,90292.0,90290.0,0.01107542]
[1764946724962,0.02768733,90294.0,90291.0,0.23258131]
[1764946725176,0.0110753,90291.0,90284.0,0.01107615]
[1764946725379,0.02768855,90290.0,90289.0,0.22151092]
[1764946725592,0.02768855,90290.0,90283.0,0.01107628]
[1764946725844,0.01107554,90289.0,90283.0,0.01107628]
[1764946726090,0.02768917,90288.0,90287.0,0.22151556]
[1764946726292,0.23258164,90291.0,90288.0,0.22151293]
[1764946726536,0.01107456,90297.0,90290.0,0.01107542]
[1764946726674,0.01107481,90295.0,90292.0,0.22150349]
[1764946726877,0.01107481,90295.0,90292.0,0.23257866]
[1764946727428,0.32308836,90302.0,90300.0,0.22148275]
[1764946727573,0.22148695,90299.0,90296.0,0.01107468]
[1764946727906,0.2325607,90299.0,90296.0,0.23256819]
[1764946728113,8.836e-05,90302.0,90300.0,0.22148157]
[1764946728496,0.5444816,90301.0,90299.0,0.01107431]
[1764946728702,0.323,90301.0,90300.0,0.22148394]
[1764946729503,8.836e-05,90302.0,90300.0,0.22148394]
[1764946729504,8.836e-05,90302.0,90301.0,0.22148148]
[1764946730112,8.836e-05,90302.0,90301.0,0.22300257]
[1764946730339,0.00308836,90302.0,90301.0,0.22300257]
[1764946731129,8.836e-05,90302.0,90301.0,0.22300257]
[1764946731568,0.00208836,90302.0,90301.0,0.23700257]
[1764946732941,8.836e-05,90302.0,90301.0,0.23700257]
[1764946733370,8.836e-05,90302.0,90301.0,0.23900257]
[1764946733733,8.836e-05,90302.0,90301.0,0.23700257]
[1764946734089,8.836e-05,90302.0,90301.0,0.23900257]
[1764946734277,8.836e-05,90302.0,90301.0,0.22500257]
[1764946734658,8.836e-05,90302.0,90301.0,0.23700257]
[1764946735040,8.836e-05,90302.0,90301.0,0.22300257]
[1764946735442,8.836e-05,90302.0,90301.0,0.24000257]
[1764946735669,8.836e-05,90302.0,90301.0,0.22300257]
[1764946736084,8.836e-05,90302.0,90301.0,0.23900257]
[1764946736330,8.836e-05,90302.0,90301.0,0.22300257]
[1764946736515,8.836e-05,90302.0,90301.0,0.22500257]
[1764946737515,8.836e-05,90302.0,90301.0,0.22300257]
[1764946737695,8.836e-05,90302.0,90301.0,0.22148148]
[1764946738081,8.836e-05,90302.0,90301.0,0.22648148]
[1764946738639,8.836e-05,90302.0,90301.0,0.22148148]
[1764946739323,8.836e-05,90302.0,90299.0,0.37916068]
[1764946739496,0.01116231,90302.0,90299.0,0.1466]
[1764946739722,0.22148394,90300.0,90299.0,0.1466]
[1764946740457,8.836e-05,90302.0,90301.0,0.22148148]
[1764946740654,0.23264155,90302.0,90299.0,0.15767431]
[1764946740960,0.01116231,90302.0,90299.0,0.1466]
[1764946741155,0.22148315,90301.0,90299.0,0.1466]
[1764946741415,0.22148315,90301.0,90299.0,0.002]
[1764946741416,0.22148394,90300.0,90299.0,0.002]
[1764946741566,0.22148394,90300.0,90299.0,0.015]
[1764946741567,0.31362394,90300.0,90299.0,0.015]
[1764946741828,0.58031394,90300.0,90299.0,0.002]
[1764946742006,0.69914693,90300.0,90299.0,0.002]
[1764946742586,0.69914693,90300.0,90299.0,0.005]
[1764946743057,0.01107579,90287.0,90282.0,0.0110764]
[1764946743205,0.23258745,90289.0,90285.0,0.2325966]
[1764946743404,0.22151658,90287.0,90284.0,0.2325992]
[1764946743708,0.22152062,90286.0,90283.0,0.01107628]
[1764946743873,0.01107615,90284.0,90280.0,0.221533]
[1764946744048,0.0110764,90282.0,90279.0,0.22153543]
[1764946744247,0.0110764,90282.0,90279.0,0.2326122]
[1764946744448,0.23260402,90285.0,90281.0,0.23260662]
[1764946744655,0.232595,90286.0,90283.0,0.23260182]
[1764946744855,0.23260054,90284.0,90281.0,0.23260585]
[1764946745066,0.01107628,90283.0,90279.0,0.23261037]
[1764946745231,0.01107615,90284.0,90281.0,0.01107652]
[1764946745425,0.03026,90287.0,90283.0,0.01107628]
[1764946745736,0.003,90287.0,90285.0,0.22152073]
[1764946746057,0.003,90287.0,90286.0,0.22151828]
[1764946746465,0.23257896,90292.0,90289.0,0.01107554]
[1764946746664,0.01107603,90285.0,90280.0,0.01107665]
[1764946746885,0.01307603,90285.0,90281.0,0.01107652]
[1764946747083,0.01307603,90285.0,90282.0,0.0110764]
[1764946747322,0.23258925,90288.0,90285.0,0.22152063]
[1764946747544,0.23258925,90288.0,90285.0,0.23259666]
[1764946747747,0.23258925,90288.0,90284.0,0.01107615]
[1764946747748,0.01107579,90287.0,90284.0,0.01107615]
[1764946747903,0.23258925,90288.0,90285.0,0.23259657]
[1764946748074,0.01107591,90286.0,90283.0,0.23260113]
[1764946748453,0.0110764,90282.0,90278.0,0.01107689]
[1764946748574,0.01107591,90286.0,90281.0,0.01107652]
[1764946748788,0.0110764,90282.0,90278.0,0.01107689]
[1764946748994,0.23260176,90284.0,90280.0,0.01107665]
[1764946749255,0.01107665,90280.0,90276.0,0.01107714]
[1764946749480,0.01107677,90279.0,90275.0,0.22154379]
[1764946749714,0.22154527,90275.0,90274.0,0.00152109]
[1764946749937,0.01107701,90277.0,90274.0,0.00152109]
[1764946750149,0.22154314,90276.0,90274.0,0.00152109]
[1764946750371,0.0110775,90273.0,90269.0,0.011078]
[1764946750582,0.0110775,90273.0,90246.0,0.44323059]
[1764946750583,0.011078,90269.0,90266.0,0.36816629]
[1764946750786,0.01107775,90271.0,90269.0,0.22156]
[1764946750982,0.23262533,90274.0,90270.0,0.2215551]
[1764946751415,0.2326212,90276.0,90272.0,0.23263023]
[1764946751596,0.01107714,90276.0,90272.0,0.23263023]
[1764946751798,0.01107714,90276.0,90273.0,0.23262706]
[1764946752014,0.23262093,90276.0,90273.0,0.23262706]
[1764946752229,0.22154601,90275.0,90273.0,0.0110775]
[1764946752430,0.0130775,90273.0,90270.0,0.23303214]
[1764946752758,0.22155507,90272.0,90270.0,0.00039917]
[1764946753029,0.0130775,90273.0,90270.0,0.00039917]
[1764946753030,0.0110775,90273.0,90270.0,0.23303407]
[1764946753327,0.002,90276.0,90274.0,0.01107738]
[1764946753537,0.002,90276.0,90274.0,0.22154769]
[1764946753739,0.22354393,90276.0,90273.0,0.23262312]
[1764946753893,0.22154393,90276.0,90273.0,0.23262312]
[1764946754099,0.22154393,90276.0,90274.0,0.2215474]
[1764946754307,0.01107726,90275.0,90271.0,0.22155297]
[1764946754517,0.01107714,90276.0,90273.0,0.0110775]
[1764946754758,0.23260841,90281.0,90273.0,0.0110775]
[1764946754956,0.22153999,90278.0,90275.0,0.2215435]
[1764946755133,0.23261688,90278.0,90275.0,0.23262076]
[1764946755483,0.01107677,90279.0,90275.0,0.01107726]
[1764946755699,0.002,90276.0,90275.0,0.23262093]
[1764946756116,0.002,90276.0,90275.0,0.01107726]
[1764946756351,0.002,90276.0,90273.0,0.23262298]
[1764946756544,0.002,90276.0,90274.0,0.2215477]
[1764946756747,0.01107701,90277.0,90273.0,0.0110775]
[1764946756748,0.23261856,90277.0,90273.0,0.0110775]
[1764946756968,0.22154403,90276.0,90273.0,0.23262541]
[1764946757177,0.23262212,90277.0,90273.0,0.23262541]
[1764946757589,0.23261769,90277.0,90274.0,0.23262406]
[1764946757795,0.22154499,90276.0,90273.0,0.23262767]
[1764946758018,0.01107701,90277.0,90273.0,0.23262767]
[1764946758019,0.23561491,90278.0,90274.0,0.23262511]
[1764946758209,0.003,90278.0,90277.0,0.22154037]
[1764946758412,0.02768825,90291.0,90290.0,0.22150847]
[1764946758621,0.23256873,90296.0,90285.0,0.01107603]
[1764946758622,0.01107505,90293.0,90285.0,0.01107603]
[1764946758831,0.01107579,90287.0,90280.0,0.01107665]
[1764946759045,0.01107603,90285.0,90282.0,0.0110764]
[1764946759268,0.23259953,90284.0,90281.0,0.23260703]
[1764946759418,0.0276907,90283.0,90282.0,0.22152775]
[1764946759629,0.01107603,90285.0,90282.0,0.22152775]
[1764946759630,0.02769009,90285.0,90282.0,0.0110764]
[1764946759833,0.02769009,90285.0,90284.0,0.22152319]
[1764946760073,0.02768978,90286.0,90285.0,0.22152073]
[1764946760283,0.02768947,90287.0,90284.0,0.23259934]
[1764946760492,0.02768947,90287.0,90285.0,0.22152023]
[1764946760701,0.24920582,90287.0,90284.0,0.23259934]
[1764946760917,0.24920582,90287.0,90283.0,0.23259725]
[1764946760918,0.01107579,90287.0,90283.0,0.01107628]
[1764946761135,0.22151942,90286.0,90283.0,0.23259991]
[1764946761362,0.03833615,90284.0,90278.0,0.23261434]
[1764946761549,0.03833615,90284.0,90276.0,0.01107714]
[1764946761550,0.23260952,90281.0,90276.0,0.01107714]
[1764946761749,0.01107677,90279.0,90272.0,0.01107763]
[1764946761999,0.03876912,90278.0,90276.0,0.22154207]
[1764946762143,0.26030716,90278.0,90275.0,0.01107726]
[1764946762341,0.26030716,90278.0,90271.0,0.01107775]
[1764946762342,0.01107726,90275.0,90271.0,0.01107775]
[1764946762540,0.01107726,90275.0,90270.0,0.00039917]
[1764946762541,0.0110775,90273.0,90270.0,0.00039917]
[1764946762967,0.22155309,90272.0,90270.0,0.00039917]
[1764946763141,0.01107726,90275.0,90271.0,0.01107775]
[1764946763331,0.02769315,90275.0,90272.0,0.23262937]
[1764946763528,0.02769315,90275.0,90273.0,0.22155018]
[1764946763803,0.02769315,90275.0,90274.0,0.22154773]
[1764946763930,0.02769315,90275.0,90273.0,0.22155018]
[1764946763931,0.02769254,90277.0,90276.0,0.22154188]
[1764946764335,0.01107677,90279.0,90276.0,0.23261902]
[1764946764498,0.03876912,90278.0,90274.0,0.01107738]
[1764946764705,0.02769223,90278.0,90275.0,0.01107726]
[1764946765008,0.02769223,90278.0,90277.0,0.22154037]
[1764946765145,0.01107689,90278.0,90274.0,0.23262315]
[1764946765362,0.03876912,90278.0,90274.0,0.01107738]
[1764946765561,0.02769223,90278.0,90275.0,0.01107726]
[1764946765771,0.01107714,90276.0,90261.0,0.00334742]
[1764946766047,0.01107714,90276.0,90260.0,0.0110791]
[1764946766048,0.24767509,90271.0,90266.0,0.01107836]
[1764946766189,0.02612,90271.0,90268.0,0.01107812]
[1764946766397,0.24767509,90271.0,90266.0,0.01107836]
[1764946766608,0.02612,90271.0,90270.0,0.22195671]
[1764946767410,0.23262079,90276.0,90272.0,0.2326286]
[1764946767579,0.26031364,90276.0,90272.0,0.2326286]
[1764946767786,0.01107726,90275.0,90270.0,0.01147704]
[1764946767979,0.23262264,90275.0,90272.0,0.23262996]
[1764946768179,0.0110764,90282.0,90278.0,0.22153768]
[1764946768423,0.01107652,90281.0,90276.0,0.01107714]
[1764946768631,0.01107652,90281.0,90278.0,0.01107689]
[1764946768798,0.2326102,90280.0,90276.0,0.01107714]
[1764946768992,0.22152407,90284.0,90277.0,0.23261492]
[1764946769255,0.01107615,90284.0,90279.0,0.01107677]
[1764946769587,0.25872178,90284.0,90279.0,0.01107677]
[1764946769827,0.03719615,90284.0,90279.0,0.2326122]
[1764946770083,0.003,90280.0,90279.0,0.2326122]
[1764946771298,0.02612,90284.0,90283.0,0.22152564]
[1764946771513,0.02612,90284.0,90281.0,0.01107652]
[1764946771514,0.02612,90284.0,90282.0,0.22152609]
[1764946771706,0.03719615,90284.0,90281.0,0.23260695]
[1764946771955,0.03719615,90284.0,90282.0,0.22152726]
[1764946772159,0.04019615,90284.0,90282.0,0.22152726]
[1764946772379,0.04019615,90284.0,90281.0,0.23260695]
[1764946772590,0.02612,90284.0,90281.0,0.23260695]
[1764946772872,0.02612,90284.0,90282.0,0.2215281]
[1764946773080,0.02912,90284.0,90283.0,0.22152564]
[1764946773749,0.003,90284.0,90283.0,0.22304673]
[1764946774452,0.01107493,90294.0,90290.0,0.23258375]
[1764946774816,0.03876268,90293.0,90288.0,0.01107566]
[1764946775015,0.02768763,90293.0,90290.0,0.01107542]
[1764946775214,0.02768763,90293.0,90292.0,0.22150356]
[1764946775530,0.02768487,90302.0,90301.0,0.22148148]
[1764946775779,0.55554944,90304.0,90301.0,0.22148148]
[1764946775986,0.24873699,90303.0,90301.0,0.22148148]
[1764946776120,0.01107407,90301.0,90297.0,0.22149034]
[1764946776314,0.22148424,90300.0,90297.0,0.22149088]
[1764946776522,0.01107333,90307.0,90298.0,0.01107444]
[1764946776797,0.22147191,90305.0,90302.0,0.22147781]
[1764946777000,0.22147485,90304.0,90301.0,0.22148083]
[1764946777286,0.23254269,90306.0,90303.0,0.22147656]
[1764946777485,0.02768395,90305.0,90303.0,0.01107382]
[1764946777887,0.02768395,90305.0,90303.0,0.23255032]
[1764946778458,0.00011964,90307.0,90304.0,0.23254783]
[1764946778659,0.00011964,90307.0,90306.0,0.22146922]
[1764946780136,0.00211964,90307.0,90306.0,0.22146922]
[1764946780549,0.00211964,90307.0,90306.0,0.00152109]
[1764946780752,0.00211964,90307.0,90306.0,0.22299031]
[1764946783750,0.00211964,90307.0,90305.0,0.22147078]
[1764946783928,0.00211964,90307.0,90306.0,0.22146922]
[1764946784131,0.00211964,90307.0,90306.0,0.21083516]
[1764946784586,0.00211964,90307.0,90306.0,0.23294695]
[1764946784796,0.00011964,90307.0,90306.0,0.21083516]
[1764946785141,0.00211964,90307.0,90306.0,0.21083516]
[1764946785546,0.00011964,90307.0,90306.0,0.21083516]
[1764946785921,0.00011964,90307.0,90306.0,0.21383516]
[1764946786362,0.00011964,90307.0,90306.0,0.21083516]
[1764946786987,0.00011964,90307.0,90306.0,0.22483516]
[1764946787196,0.00011964,90307.0,90306.0,0.21083516]
[1764946788174,0.00011964,90307.0,90306.0,0.21383516]
[1764946788655,0.00011964,90307.0,90306.0,0.23294695]
[1764946789089,0.00011964,90307.0,90306.0,0.23494695]
[1764946789640,0.00011964,90307.0,90306.0,0.23294695]
[1764946789993,0.00011964,90307.0,90306.0,0.24994695]
[1764946790198,0.00011964,90307.0,90306.0,0.23594695]
[1764946790362,0.00011964,90307.0,90306.0,0.55894695]
[1764946790563,0.00011964,90307.0,90306.0,0.57494695]
[1764946791012,0.00011964,90307.0,90306.0,0.5793788]
[1764946798941,0.00011964,90307.0,90306.0,0.55726701]
[1764946799251,0.00011964,90307.0,90306.0,0.25194695]
[1764946800394,0.0002,90340.0,90337.0,0.01106966]
[1764946800616,0.00031957,90340.0,90339.0,0.22138832]
[1764946801121,0.011065,90375.0,90339.0,0.22138832]
[1764946801122,0.0002,90400.0,90389.0,0.22126586]
[1764946801309,0.01299563,90390.0,90379.0,0.01106451]
[1764946801598,0.00193246,90390.0,90388.0,0.22126717]
[1764946801801,0.00161287,90389.0,90383.0,0.01106402]
[1764946801953,0.0292711,90389.0,90388.0,0.2212683]
[1764946802161,0.00161287,90389.0,90388.0,0.2212683]
[1764946802594,0.2212683,90388.0,90380.0,0.22128762]
[1764946802793,0.02927171,90387.0,90384.0,0.0110639]
[1764946802993,0.00161287,90387.0,90385.0,0.22127369]
[1764946803207,0.00031959,90390.0,90389.0,0.22126586]
[1764946803406,0.00031959,90390.0,90387.0,0.01106353]
[1764946803581,0.00031959,90390.0,90389.0,0.22126586]
[1764946803781,0.0002,90400.0,90399.0,0.22124138]
[1764946804011,0.0002,90410.0,90399.0,0.22124138]
[1764946804012,0.0002,90410.0,90409.0,0.22121691]
[1764946804333,0.0002,90430.0,90427.0,0.01105864]
[1764946804529,0.0002,90430.0,90421.0,0.01105937]
[1764946804530,0.23379308,90430.0,90421.0,0.01105937]
[1764946804665,0.03378,90422.0,90415.0,0.01106011]
[1764946804877,0.01105913,90423.0,90413.0,0.01106035]
[1764946805087,0.02764722,90425.0,90420.0,0.0110595]
[1764946805300,0.323,90424.0,90384.0,0.2212732]
[1764946805522,0.01106243,90396.0,90389.0,0.01106329]
[1764946805759,0.03378,90420.0,90379.0,0.01106451]
[1764946805760,0.01106366,90386.0,90379.0,0.01106451]
[1764946805965,0.00144745,90430.0,90378.0,0.01106463]
[1764946805966,0.01106329,90389.0,90378.0,0.01106463]
[1764946806176,0.01106378,90385.0,90379.0,0.01106451]
[1764946806385,0.01106378,90385.0,90374.0,0.22130035]
[1764946806386,0.01106329,90389.0,90382.0,0.01106414]
[1764946806590,0.01106292,90392.0,90385.0,0.007]
[1764946806841,0.01106378,90385.0,90382.0,0.00039841]
[1764946807018,0.05878,90383.0,90382.0,0.00039841]
[1764946807228,0.05266006,90383.0,90382.0,0.00039841]
[1764946807428,0.08644006,90383.0,90382.0,0.00039841]
[1764946807641,0.13914006,90383.0,90382.0,0.00039841]
[1764946807864,0.23231401,90395.0,90383.0,0.01106402]
[1764946808038,0.01106378,90385.0,90382.0,0.00039841]
[1764946808398,0.01106317,90390.0,90383.0,0.01106402]
[1764946808399,0.01106353,90387.0,90383.0,0.01106402]
[1764946808520,0.01106366,90386.0,90383.0,0.01106402]
[1764946808721,0.01106366,90386.0,90382.0,0.00039841]
[1764946808722,0.002,90383.0,90382.0,0.00039841]
[1764946809259,0.01106219,90398.0,90389.0,0.01106329]
[1764946809612,0.02765517,90399.0,90395.0,0.01106255]
[1764946809822,0.00144745,90398.0,90393.0,0.23231729]
[1764946809999,0.00144745,90398.0,90389.0,0.01106329]
[1764946810207,0.23234059,90385.0,90382.0,0.00439841]
[1764946810529,0.025,90383.0,90382.0,0.00039841]
[1764946810653,0.06022745,90383.0,90382.0,0.00039841]
[1764946810861,0.11292745,90383.0,90382.0,0.00039841]
[1764946811265,0.06022745,90383.0,90382.0,0.00039841]
[1764946811490,0.11292745,90383.0,90382.0,0.00039841]
[1764946811697,4.85565044,90383.0,90382.0,0.00039841]
[1764946811900,0.44575044,90383.0,90382.0,0.00039841]
[1764946812070,0.49845044,90383.0,90382.0,0.00039841]
[1764946812271,0.35057881,90383.0,90382.0,0.00039841]
[1764946812695,0.38435881,90383.0,90382.0,0.00039841]
[1764946812896,0.43905881,90383.0,90382.0,0.00039841]
[1764946813077,0.38635881,90383.0,90382.0,0.00039841]
[1764946813298,0.35057881,90383.0,90382.0,0.00039841]
[1764946813664,0.43705881,90383.0,90382.0,0.00439841]
[1764946813863,0.38435881,90383.0,90382.0,0.00039841]
[1764946814067,0.43705881,90383.0,90382.0,0.00039841]
[1764946814277,0.01106708,90358.0,90352.0,0.01106782]
[1764946814480,0.01106659,90362.0,90358.0,0.01106708]
[1764946814906,0.01106659,90362.0,90352.0,0.00011959]
[1764946814907,0.03378,90359.0,90353.0,0.22135402]
[1764946815108,0.025,90363.0,90357.0,0.01106721]
[1764946815311,0.025,90363.0,90360.0,0.01106684]
[1764946815517,0.06252299,90368.0,90364.0,0.01106635]
[1764946815721,0.01106623,90365.0,90355.0,0.01106745]
[1764946815930,0.01106647,90363.0,90358.0,0.01106708]
[1764946816134,0.001,90362.0,90359.0,0.01106696]
[1764946816550,0.001,90362.0,90360.0,0.22133687]